{"text_format":"1","workbook":"xlsx","n_sheets":8,"sheets":["General","Instrucciones","Datos de la Entidad","Datos del Proyecto","Modelo Operativo","Presupuesto","Checklist Documentos","Parametros"],"not_rendered":{"charts":0,"images":3,"macros":1,"external_links":0,"defined_names":2,"comments":0,"pivot_tables":0},"unopened":[],"bounds":{"document_bytes":16777216,"sheet_cells":100000,"rows_first":2000,"rows_last":500,"rows_between":2000,"halvings":0,"cell_chars":16384,"cell_head_chars":4096},"cells_cut":0,"cells_raw":0,"read":"whole","date_system":"1900"}

{"sheet":"General","index":0,"n_rows":26,"n_cols":2,"rows_kept":26,"cut":false,"hidden":false,"merged":[[21,1,22,1],[25,1,26,1],[1,0,1,13],[3,0,3,13],[11,1,12,1],[14,1,16,1],[18,1,19,1]]}
[]
["FORMATO DE SOLICITUD DE DONATIVOS"]
[]
["INTRODUCCIÓN"]
[]
[null,"Le agradecemos su interés en Fundación Paso del Norte para la Salud y Bienestar  y participación en el Reto por la Salud y el Bienestar 2017."]
[null,"Le invitamos a seguir los pasos descritos a continuación:"]
[]
[null,"Lea cuidadosamente las instrucciones."]
[]
[]
[null,"Complete cuidadosamente la información requerida en todas las pestañas del presente \"Formato de Solicitud de Donativos\"."]
[]
[]
[null,"Adjunte al \"Formato de Solicitud de Donativos\" los documentos de soporte solicitados en las pestañas Datos de la Entidad y Datos del Proyecto, así como los Anexos  descritos en el Procedimiento de Solicitud y Otorgamiento de Donativos. "]
[]
[]
[]
[null,"Envíe todos los documentos al correo reto@fundacionpdn.org"]
[]
[]
[null,"Espere el correo de confirmación de recibido de Fundación Paso del Norte para la Salud y Bienestar, en el que se le indicará el folio de evaluación asignado a su solicitud."]
[]
[]
[]
[null,"¡Mucho éxito!"]

{"sheet":"Instrucciones","index":1,"n_rows":28,"n_cols":9,"rows_kept":28,"cut":false,"hidden":false,"merged":[[8,0,10,0],[12,0,18,0],[0,2,0,6],[29,2,31,2],[32,2,33,2],[23,2,23,6],[27,2,27,6],[8,4,8,6],[10,4,10,6],[12,2,18,2],[20,4,20,6],[25,2,25,6],[3,2,4,6]]}
[null,null,"FORMATO DE SOLICITUD DE DONATIVOS"]
[]
[null,null,"Instrucciones:"]
[null,null,"Lea cuidadosamente las siguientes instrucciones y posteriormente llene cada una de las pestañas. La información contenida en el formato de solicitud de donativos, permitirá a los evaluadores conocer a su organización y el proyecto para el que solicita el donativo. "]
[]
[null,null,"¿Cómo completar el formato de solicitud de donativos?"]
[null,null,"El formato de solicitud de donativos está compuesto por 3 partes: "]
[]
[1,null,"Datos de la Entidad",null,"En esta pestaña le solicitaremos información general sobre la entidad que solicita el donativo."]
[]
[null,null,"Datos del Proyecto",null,"En esta pestaña le solicitaremos información específica sobre el proyecto para el que solicita el donativo.\nEn la columna \"Comentarios\"  encontrará algunas explicaciones adicionales que le ayudarán a proporcionar la información solicitada.\nPara los apartados, Modelo Operativo y Presupuesto le pedimos complete la información en las pestañas correspondientes. \nPara los apartados Perfil Organizacional, le solicitamos anexar los documentos al correo en el que enviará el presente \"Formato de Solicitud de Donativos. "]
[]
[2,null,"Documentos Anexos",null,"Modelo Operativo",null,"El objetivo de este documento es entender más sobre los esfuerzos de procuración de fondos que realizarán para llegar a la meta del Reto:\n1. ¿Quiénes son los actores involucrados en la campaña de procuración de fondos?\n2. ¿Cómo se comunican entre sí y con los donantes?\n3. ¿Cuál será el seguimiento que se dará para cultivar a sus donantes?\n4. ¿Cuáles serán las principales estrategias de procuración de fondos que seguirán para llegar a la meta?\n5. ¿Cuál es el esquema de seguimiento de la campaña? ¿Qué tipo de reuniones se tendrán y con quiénes? ¿Con qué frecuencia? ¿Quién participa en la toma de decisiones?\n"]
[]
[null,null,null,null,"Perfil Organizacional",null,"Le solicitamos anexar el perfil organizacional en donde se incluya una lista de los miembros del consejo, misión, visión y valores de la organización. Principales logros y los retos que presentan tanto para la ejecución del proyecto como para la gestión financiera. "]
[]
[null,null,null,null,"Presupuesto",null,"En esta pestaña solicitamos detallar las actividades y el presupuesto requeridos para llevar a cabo el proyecto:\n1. Descripción: Una breve explicación de la actividad. ¿Qué se va a hacer?\n2. Monto Fundación PDN: Monto de la actividad financiado con el recurso de empate de Fundación PDN\n3. Monto co-financiamiento: Recursos gestionados de eventos y/o otros donantes para el proyecto y en que actividades del proyecto serán aplicados\n4. Monto Total: Monto total de la actividad. ¿Cuánto cuesta en total el proyecto?\n5. Tipo de Gasto: Indicar si la inversión necesaria para financiar la actividad corresponde a un bien material, bien no material, gestión de proyecto u otro.\n\n",null,"▪  Bien material: \nPor ejemplo: metros de construcción, compra de equipo, compra de material, etc.\n\n▪ Bien no material:\nPor ejemplo: capacitaciones, campañas de sensibilización, estudios, etc.\n\n▪ Gestión de proyecto:\nEn caso de que la donataria utilice el dinero recibido para la gestión y administración del proyecto. Se refiere a la cantidad solicitada por la donataria para la gestión del proyecto y administración del recurso. \n\n▪ Otro:\nCualquier otro elemento que no corresponda a las 3 categorías previamente citadas."]
[]
[]
[]
[3,null,"Checklist Documentos",null,"Al concluir el llenado del presente \"Formato de Solicitud de Donativos\" y documentos anexos requeridos, podrá verificar que su solicitud esté completa marcando los documentos listados en la pestaña \"Checklist Documentos\"."]
[]
[null,null,"¿Qué debo de hacer al terminar de completar el formato de solicitud de donativos?"]
[1,null,"Adjuntar el Formato de Solicitud de Donativos (Datos de la Entidad, Datos del Proyecto, Modelo Operativo, Presupuesto y Documentos Anexos)  \n\nVerificar que todos los documentos estén adjuntos utilizando como guía el  \"Checklist Documentos\".\n"]
[]
[2,null,"Enviar todos los documentos al correo: reto@fundacionpdn.org a más tardar el 5 de mayo de 2017."]
[]
[3,null,"Esperar el correo de confirmación de recibido de Fundación Paso del Norte para la Salud y Bienesar, en el que se le indicará el folio de evaluación asignado a su solicitud."]

{"sheet":"Datos de la Entidad","index":2,"n_rows":34,"n_cols":6,"rows_kept":34,"cut":false,"hidden":false,"merged":[[23,0,24,0],[24,2,24,5],[30,0,31,0],[32,0,34,0],[3,0,3,5],[5,2,5,5],[16,0,17,0],[18,0,19,0],[20,0,21,0],[25,0,26,0],[27,0,29,0],[32,3,33,5],[27,1,29,1],[27,3,29,5],[28,2,29,2],[30,2,30,5],[31,2,31,5],[33,2,34,2],[1,1,1,5],[30,1,31,1],[6,2,6,5],[8,2,8,5],[20,1,21,1],[16,1,17,1],[18,1,19,1],[7,2,7,5],[9,2,9,5],[25,1,26,1],[25,2,25,5],[26,2,26,5],[23,1,24,1],[32,1,34,1],[15,2,15,5],[10,2,10,5],[11,2,11,5],[12,2,12,5],[13,2,13,5],[14,2,14,5],[23,2,23,5],[20,2,20,5],[21,2,21,5],[16,2,16,5],[17,2,17,5],[18,2,18,5],[19,2,19,5],[22,2,22,5]]}
[]
[null,"FORMATO DE SOLICITUD DE DONATIVOS"]
[null,null,null,null,null,"Número de folio asignado por Fundación Paso del Norte para la Salud y Bienestar:"]
["DATOS DE LA ENTIDAD"]
[]
["N#","PREGUNTAS","RESPUESTAS"]
["1.","Fecha de envío de la solicitud:"]
["2.","Nombre o razón social de la Entidad:"]
["3.","Domicilio:"]
["4.","Ciudad/Municipio/Estado/C.P."]
["5.","Contacto:\nNombre y posición"]
["6.","Número de teléfono:\nIncluir clave lada."]
["7.","Correo electrónico:"]
["8.","Sitio Web:"]
["9.","Número de autorización SAT\nFavor de indicar el número de autorización vigente en la página del SAT o publicado en el Diario Oficial de la Federación, que acredita a la donataria para emitir recibos deducibles de impuestos."]
["10.","Registro CLUNI\nSi cuenta con ello, favor de indicar el número de Registro Federal de las Organizaciones de la Sociedad Civil."]
["11.","Informe Anual\n¿Publica un Informe Anual de resultados? ","En caso de responder NO, favor de explicar la razón."]
[]
["12.","Informes Financieros\n¿Cuenta con informes financieros auditados por un tercero? "]
[null,null,"En caso de responder Sí, incluya el último informe auditado. "]
["13.","Fuentes de ingresos\n¿Cuenta con al menos 3 fuentes de ingresos? "]
["13.",null,"En caso de responder Sí, cite las tres principales fuentes de ingresos:\n"]
["14.","Consejo Directivo\n¿El consejo directivo o patronato de la organización es diferente a su equipo profesional?"]
["15.","Personal Profesional\n¿El personal profesional de la organización se encuentra contratado en nómina? (En caso de responder si indique el porcentaje)"]
[null,null,"En caso de responder Sí, indique el porcentaje:"]
["16.","Gestión del recurso \n¿La organización solicita algún porcentaje del monto del donativo por su labor en la gestión del recurso? \n\nNOTA: Tomar en cuenta que el porcentaje correspondiente a la gestión del recurso se descontará del monto total del donativo solicitado."]
["16.",null,"En caso de responder Sí, indique el porcentaje: __________________________"]
["17.","Reconocimientos\n¿La donataria ha recibido algún premio o reconocimiento por su labor en los últimos 3 años? "]
["17.",null,"En caso de responder Sí, favor de completar la siguiente información dando doble clic en la tabla:"]
[]
["18.","Comunicación\n¿La organización está de acuerdo en otorgar a Fundación Paso del Norte para la Salud y Bienestar beneficios de comunicación de la marca? \n\n"]
["18.",null,"En caso de responder Sí, favor de describir los beneficios en comunicación de la marca: "]
["19.","Otros Donativos\nEn los últimos tres años su organización ha recibido donativos en especie o monetarios de Fundación Paso del Norte para la Salud y Bienestar, Paso del Norte Health Foundation o Paso del Norte Charitable Foundation?"]
["19.",null,"En caso de responder Sí, favor de completar la siguiente información dando doble clic en la tabla:"]

{"sheet":"Datos del Proyecto","index":3,"n_rows":35,"n_cols":5,"rows_kept":35,"cut":false,"hidden":false,"merged":[[34,2,34,3],[31,2,31,3],[5,2,5,3],[3,0,3,4],[26,4,29,4],[18,2,20,2],[12,1,20,1],[12,0,20,0],[12,4,20,4],[21,1,24,1],[21,4,24,4],[31,1,32,1],[21,0,24,0],[7,2,7,3],[6,2,6,3],[30,2,30,3],[31,0,32,0],[31,4,32,4],[32,2,32,3],[33,2,33,3],[1,1,1,4],[11,2,11,3],[9,0,10,0],[26,1,29,1],[26,0,29,0],[12,2,14,2],[15,2,17,2],[8,2,8,3],[9,1,10,1]]}
[]
[null,"FORMATO DE SOLICITUD DE DONATIVOS"]
[null,null,null,null,"Número de folio asignado por Fundación PDN:"]
["DATOS DE LA PROYECTO"]
[]
["N#","PREGUNTAS","RESPUESTAS",null,"COMENTARIOS"]
["1.","Nombre del Proyecto\nEspecifique el nombre del Proyecto:"]
["2.","Eje de acción\nIndique el eje de acción de Fundación PDN al que se alinea el proyecto:",null,null,"\n▪ Equidad de género: Fortalecer el rol de las mujeres en la sociedad, empoderar a las niñas y mujeres promoviendo la equidad de género.\n \n▪ Familias resilentes: Trabajar con los niños afectados por la violencia, por medio de actividades de promoción de paz y resilencia\n\n▪ Vida Saludable: Promover buenos hábitos de alimentación y activación física.\n\n▪ Bienestar emocional: Promover ambientes saludables que contribuyan al bienestar emocional de las personas de la comunidad.\n\n▪ Redes y Alianzas: Lograr un impacto colectivo al trabajar en coordinación con diversos actores y sectores de la comunidad."]
["3.","Problemática\nDescriba el contexto en el que se desarrolla el proyecto y la problemática que busca resolver:"]
["4.","Descripción del Proyecto\nDescriba el objetivo general del proyecto.\nExplique cómo ayuda el  proyecto a resolver la problemática descrita arriba: ","Objetivo general del proyecto:",null,"▪ Objetivo general del proyecto: Motivo o propósito por el que se creó el proyecto. ¿Qué pretende cumplir en el entorno? ¿Para quién lo hace?"]
[null,null,"Resolución de la problemática:",null,"¿Cómo ayuda el proyecto a resolver la problemática?:"]
["5.","Ubicación\n¿En qué parte de la ciudad se realizará el proyecto?:"]
["6.","Objetivos e Indicadores\nDescriba cuáles son los objetivos del proyecto. \nIndique para cada objetivo el indicador que permitirá medir el avance de dicho objetivo y cómo piensa calcular/estimar este indicador: ","Objetivos:\n",null,"▪ Los objetivos son los resultados concretos que el proyecto busca conseguir. Medimos el alcance de estos objetivos por indicadores sociales, medio ambientales y/o económicos. \n\n▪ Indicadores sociales: Los indicadores sociales están relacionados con los beneficiarios que el proyecto busca ayudar.\n\n▪ Indicadores medio ambientales: Los indicadores medioambientales están relacionados con un resultado o efecto en el medio ambiente. \n\n▪ Indicadores económicos: Los indicadores económicos están relacionados con la actividad económica que genera el proyecto. \n\n▪ ¿Cómo lo ha calculado?: Describa que criterios considera para calcular los objetivos e indicadores."]
[]
[]
[null,null,"Indicadores:"]
[]
[]
[null,null,"¿Cómo lo ha calculado?"]
[]
[]
["7.","Beneficiarios Directos e Indirectos\nDescriba quiénes son los beneficiarios directos e indirectos que el proyecto busca ayudar.\nEspecifique el número de estos beneficiarios y  la manera en la que calculó dicha cifra: ","Beneficiarios directos: ",null,"▪ Los beneficiarios directos son las personas que participan directamente en el proyecto,  y por consiguiente, se benefician de su implementación.\n\n▪ Los beneficiarios indirectos son, con frecuencia pero no siempre, las personas que viven al interior de la zona de influencia del proyecto.  Estas personas no están directamente implicadas en el proyecto pero se benefician de su existencia. \n\n▪ ¿Cómo lo ha calculado?: Describa que criterios ha considerado para calcular el número de beneficiarios directos e indirectos. \n"]
[null,null,"¿Cómo lo ha calculado?"]
[null,null,"Beneficiarios indirectos:"]
[null,null,"¿Cómo lo ha calculado?"]
["8.","Impactos\nDescriba cuáles son los principales impactos esperados y de qué manera el proyecto va a contribuir a alcanzar esos impactos:",null,null,"▪ Los impactos son los efectos indirectos y globales que surgen a raíz de haber logrado los objetivos del proyecto. La descripción del impacto tiene que indicar: ¿Quién está siendo impactado? ¿Cómo? ¿Cuándo? ¿Dónde? y ¿En qué medida?\n"]
["9.","Riesgos y retos\nExplique cuáles son los principales riesgos o retos que identifica para llevar a cabo exitosamente el proyecto. Especifique qué acciones piensa implementar para mitigar o superar esos retos: ","Riesgos o retos","Acciones"]
[]
[]
[]
["10.","\nExpansión y sostenibilidad del proyecto\n¿Tienen planeadas fases futuras para el proyecto? \nEn caso de responder sí, especificar cuáles serán los objetivos de dichas fases y cómo planea asegurar la sostenibilidad financiera del proyecto."]
[11,"Recursos Humanos\n¿Cuenta con el personal necesario para ejecutar el proyecto?"]
[null,null,"Breve descripción del perfil profesional de las personas responsables de la ejecución del proyecto "]
[12,"Costo total del proyecto:\n"]
[13,"Presupuesto\nDesglose el destino de los recursos.","Favor de completar la pestaña de Presupuesto."]

{"sheet":"Modelo Operativo","index":4,"n_rows":40,"n_cols":2,"rows_kept":40,"cut":false,"hidden":false,"merged":[[5,0,5,15],[2,0,3,15],[8,0,8,15],[11,0,11,15],[37,16,37,18]]}
[]
[]
["FORMATO DE SOLICITUD DE DONATIVO"]
[]
[]
["MODELO OPERATIVO"]
[]
[null,"¿Para qué sirve este esquema?"]
["El objetivo de este documento es entender:\n\n1. ¿Quiénes son los actores involucrados en la campaña de procuración de fondos?\n2. ¿Cómo se comunican entre sí y con los donantes?\n3. ¿Cuál será el seguimiento que se dará para cultivar a sus donantes?\n4. ¿Cuáles serán las principales estrategias de procuración de fondos que seguirán para llegar a la meta?\n5. ¿Cuál es el esquema de seguimiento de la campaña? ¿Qué tipo de reuniones se tendrán y con quiénes? ¿Con qué frecuencia? ¿Quién participa en la toma de decisiones?\n\nLe pedimos nos explique a manera de esquema estos diferentes elementos."]
[]
[null,"¿Cómo completar este esquema?"]
["1. Complete dentro de los recuadros azules la información requerida:\na/ Nombre del actor\nb/ Descripción. ¿Quién es este actor?: pertenece a la organización, es externo, voluntario o bajo honorarios?\nc/ Papel que desempeña en el proyecto. ¿Cuál es el papel de este actor en el proyecto?: liderar la coordinación del proyecto, facilitar la comunicación con los donantes, proporcionar soporte administrativo/financiero/recursos humanos, etc.\nd/ Responsabilidad. ¿Cuáles son las responsabilidades de este actor en la campaña?: asegurar el cumplimiento de las fechas límite, asegurar la meta de procuración de fondos, asegurar el buen manejo de los recursos etc.\n\n2. Describa el tipo de comunicación entre cada uno de los actores: diaria, regular, ocasional, inexistente.\n\n3. Complete la tabla con la información sobre el seguimiento del proyecto.","Utili"]
[]
[]
[]
[]
[]
[]
[]
[]
[]
[]
[]
[]
[]
[]
[]
[]
[]
[]
[]
[]
[]
[]
[null,"Seguimiento del proyecto"]
[null,"Tipo de reuniones"]
[null,"Frecuencia"]
[null,"¿Quién participa?"]
[null,"¿Quién lidera?"]
[null,"¿Cómo se toman las decisiones?"]

{"sheet":"Presupuesto","index":5,"n_rows":35,"n_cols":9,"rows_kept":35,"cut":false,"hidden":false,"merged":[[6,0,6,8],[1,0,1,8],[4,0,4,8],[8,7,8,8]]}
[]
["FORMATO DE SOLICITUD DE DONATIVOS"]
[]
[]
["PRESUPUESTO"]
[]
["En este documento le pedimos que detalle las actividades y el presupuesto requeridos para llevar a cabo el proyecto:\n\n1. Descripción: Una breve explicación de la actividad. ¿Qué se va a hacer?\n\n2. Tipo de inversión: Indicar si la inversión necesaria para financiar la actividad corresponde a un bien material, bien no material, gestión del proyecto u otro.\n▪  Bien material: Por ejemplo: metros de construcción, compra de equipo, compra de material, etc.\n▪  Bien no material: Por ejemplo: capacitaciones, campañas de sensibilización, estudios, etc.\n▪  Gestión del proyecto: Cantidad recibida por la donataria que se va a utilizar para realizar la gestión y administración del proyecto. \n▪  Otros: Cualquier otro elemento que no corresponda a las 3 categorías previamente citadas.\n\n2. Monto Fundación PDN: Monto de la actividad financiado con el empate de fondos de Fundación PDN.\n\n3. Monto co-financiamiento: Agregar el monto gestionado por uno o varios donantes durante la campaña del Reto, en el caso de tener varios pequeños donantes se pueden agrupar en un solo co-inversionista, si la organización aportará una parte de el costo del proyecto utilizar otra columna de co-inversión. \nSi hay varios co-inversores, favor de especificar para cada uno el monto por actividad. \n\n4. Monto Total: Monto total de la actividad. ¿Cuál es la inversión total de la actividad?\n"]
[]
[null,null,"Celdas de elección múltiple",null,null,null,null,"Celdas de llenado automático"]
["N#","DESCRIPCIÓN DE LA ACTIVIDAD","TIPO DE GASTO","MONTO EMPATE FUNDACIÓN PDN\n","MONTO CO-FINANCIAMIENTO 1\n(en pesos)","MONTO CO-FINANCIAMIENTO 2\n(en pesos)","MONTO CO-FINANCIAMIENTO 3\n(en pesos)","MONTO TOTAL\n(en pesos)","% CO-INVERSIÓN FUNDACIÓN PDN"]
[null,null,"Otros",0,null,null,null,{"$f":"D11+E11+F11+G11","v":0},{"$f":"D11/H11","v":{"$error":"#DIV/0!"}}]
[null,null,"Otros",0]
[null,null,"Otros",0]
[null,null,"Otros",0,null,null,null,{"$f":"D14+E14+F14+G14","v":0},{"$f":"D14/H14","v":{"$error":"#DIV/0!"}}]
[null,null,"Otros",null,null,null,null,{"$f":"D15+E15+F15+G15","v":0},{"$f":"D15/H15","v":{"$error":"#DIV/0!"}}]
[null,null,"Otros",null,null,null,null,0,{"$error":"#DIV/0!"}]
[null,null,"Otros",null,null,null,null,0,{"$error":"#DIV/0!"}]
[null,null,"Otros",null,null,null,null,0,{"$error":"#DIV/0!"}]
[null,null,"Otros",null,null,null,null,0,{"$error":"#DIV/0!"}]
[null,null,"Otros",null,null,null,null,0,{"$error":"#DIV/0!"}]
[null,null,"Otros",null,null,null,null,0,{"$error":"#DIV/0!"}]
[null,null,"Otros",null,null,null,null,0,{"$error":"#DIV/0!"}]
[null,null,"Otros",null,null,null,null,0,{"$error":"#DIV/0!"}]
[null,null,"Otros",null,null,null,null,0,{"$error":"#DIV/0!"}]
[null,null,"Otros",null,null,null,null,0,{"$error":"#DIV/0!"}]
[null,null,"Otros",null,null,null,null,0,{"$error":"#DIV/0!"}]
[null,null,"Otros",null,null,null,null,0,{"$error":"#DIV/0!"}]
[null,null,"TOTAL",{"$f":"SUM(D11:D27)","v":0},{"$f":"SUM(E11:E27)","v":0},{"$f":"SUM(F11:F27)","v":0},{"$f":"SUM(G11:G27)","v":0},{"$f":"SUM(H11:H27)","v":0}]
[]
[]
[]
[null,"Bien Material"]
[null,"Bien No Material"]
[null,"Gestión de Proyecto"]
[null,"Otros"]

{"sheet":"Checklist Documentos","index":6,"n_rows":24,"n_cols":5,"rows_kept":24,"cut":false,"hidden":false,"merged":[[3,1,3,4],[10,1,10,4],[1,0,1,13],[2,1,2,4]]}
[]
["FORMATO DE SOLICITUD DE DONATIVOS"]
[null,"Esta pestaña es para que pueda verificar que cuenta con toda la información y todos los documentos requeridos por esta convocatoria para participar. Marque cada casilla si ha completado o adjuntado cada apartado que se le solicita."]
[null,"Documentos Solicitud de Donativos"]
[null,"N#","Nombre del Documento","Comentarios","Llenado"]
[null,1,"Datos de la Entidad","Completar en la pestaña correspondiente."]
[null,2,"Datos del Proyecto","Completar en la pestaña correspondiente."]
[null,3,"Modelo Operativo","Completar en la pestaña correspondiente."]
[null,5,"Presupuesto","Completar en la pestaña correspondiente."]
[]
[null,"Documentos  Administrativos"]
[null,"N#","Nombre del Documento","Comentarios","Adjunto"]
[null,6,"Carta de Solicitud ","Carta firmada por la Entidad que solicita la Donación y dirigida a Fundación Paso del Norte para la Salud y Bienestar, A.C."]
[null,7,"Acta Constitutiva","Debidamente inscrita ante el Registro Público de la Propiedad del Comercio."]
[null,8,"Poder Notarial","Del representante legal."]
[null,9,"Identificación Oficial","Del representante legal."]
[null,10,"Comprobante de Domicilio Actual","Último comprobante recibido (menor a tres meses de antigüedad)."]
[null,11,"Registro Federal de Contribuyentes (RFC)","De la entidad."]
[null,12,"Autorización de donativos","Autorización vigente otorgada por la Secretaría de Hacienda y Crédito Público para recibir donaciones deducibles del impuesto sobre la renta."]
[null,13,"Estado de cuenta","Último estado de cuenta recibido (menor a tres meses de antigüedad).\nIncluir clabe interbancaria (CLABE) y moneda en pesos."]
[null,14,"Perfil de la Organización ","Breve documento que incluya la Misión, Visión de la Entidad, sus principales resultados, alianzas con entidades públicas o privadas, principales fuentes de fondeo, entre otras."]
[null,15,"Lista de miembros consejo o patronato","Lista actualizada de los miembros del consejo o patronato de la organización"]
[null,16,"Ultimo Informe Financiero","Último Informe Financiero Auditado por un tercero, en caso de haber especificado en el Formato de Solicitud de Donativo que contaba con uno."]
[null,17,"Certificado Anticorrupción","Anexo 1 - Certificado firmado por el representante legal."]

{"sheet":"Parametros","index":7,"n_rows":5,"n_cols":1,"rows_kept":5,"cut":false,"hidden":true,"merged":[]}
["Parametros"]
[]
["Desastres naturales"]
["Salud"]
["Cultura"]